fUST/lending_fUST_20240902
["ID","MTS","AMOUNT","RATE_DAILY","PERIOD"]
[336871642,1725222639751,-500.0,0.00024657,2]
[336871644,1725222639760,-521.3,0.00024657,2]
[336871646,1725222639770,-500.0,0.00024657,2]
[336871648,1725222639782,-500.0,0.00024657,2]
[336871650,1725222639791,-500.0,0.00024657,2]
[336871652,1725222639801,-500.0,0.00024657,2]
[336871654,1725222639812,-500.0,0.00024657,2]
[336871656,1725222639823,-497.34361056,0.00024657,2]
[336871658,1725222639832,-500.0,0.00024657,2]
[336871660,1725222639842,-500.0,0.00024657,2]
[336871662,1725222639852,-500.0,0.00024657,2]
[336871664,1725222639862,-500.0,0.00024657,2]
[336871667,1725222639873,-500.0,0.00024657,2]
[336871668,1725222639882,-500.0,0.00024657,2]
[336871670,1725222639893,-461.98543976,0.00024657,2]
[336871672,1725222639902,-500.0,0.00024657,2]
[336871674,1725222639912,-500.0,0.00024657,2]
[336871676,1725222639922,-500.0,0.00024657,2]
[336871678,1725222639932,-500.0,0.00024657,2]
[336871680,1725222639942,-500.0,0.00024657,2]
[336871682,1725222639953,-500.0,0.00024657,2]
[336871683,1725222639963,-456.10523102,0.00024657,2]
[336871684,1725222639972,-500.0,0.00024657,2]
[336871685,1725222639981,-500.0,0.00024657,2]
[336871687,1725222639991,-3889.93,0.00024657,2]
[336871689,1725222640001,-500.0,0.00024657,2]
[336871690,1725222640011,-500.0,0.00024657,2]
[336871691,1725222640021,-500.0,0.00024657,2]
[336871692,1725222640031,-500.0,0.00024657,2]
[336871693,1725222640040,-500.0,0.00024657,2]
[336871694,1725222640050,-500.0,0.00024657,2]
[336871695,1725222640060,-500.0,0.00024657,2]
[336871696,1725222640072,-500.0,0.00024657,2]
[336871697,1725222640081,-619.55,0.00024657,2]
[336871698,1725222640091,-500.0,0.00024657,2]
[336871699,1725222640101,-500.0,0.00024657,2]
[336871700,1725222640111,-500.0,0.00024657,2]
[336871701,1725222640121,-759.02,0.00024657,2]
[336871702,1725222640133,-500.0,0.00024657,2]
[336871703,1725222640144,-1329.4,0.00024657,2]
[336871704,1725222640154,-500.0,0.00024657,2]
[336871705,1725222640164,-593.67,0.00024657,2]
[336871706,1725222640174,-675.17,0.00024657,2]
[336871707,1725222640184,-500.0,0.00024657,2]
[336871708,1725222640194,-500.0,0.00024657,2]
[336871709,1725222640204,-500.0,0.00024657,2]
[336871710,1725222640214,-500.0,0.00024657,2]
[336871711,1725222640223,-500.0,0.00024657,2]
[336871712,1725222640232,-594.92,0.00024657,2]
[336871713,1725222640242,-500.0,0.00024657,2]
[336871714,1725222640252,-500.0,0.00024657,2]
[336871715,1725222640262,-500.0,0.00024657,2]
[336871716,1725222640272,-500.0,0.00024657,2]
[336871717,1725222640281,-500.0,0.00024657,2]
[336871718,1725222640291,-500.0,0.00024657,2]
[336871719,1725222640301,-500.0,0.00024657,2]
[336871720,1725222640311,-500.0,0.00024657,2]
[336871721,1725222640322,-500.0,0.00024657,2]
[336871722,1725222640333,-529.85447976,0.00024657,2]
[336871723,1725222640343,-500.0,0.00024657,2]
[336871724,1725222640355,-500.0,0.00024657,4]
[336871725,1725222640366,-366.88312887,0.00024657,2]
[336871726,1725222640376,-500.0,0.00024657,2]
[336871727,1725222640385,-500.0,0.00024657,2]
[336871728,1725222640394,-500.0,0.00024657,2]
[336871729,1725222640404,-500.0,0.00024657,2]
[336871730,1725222640414,-500.0,0.00024657,2]
[336871731,1725222640423,-695.34,0.00024657,2]
[336871732,1725222640432,-500.0,0.00024657,2]
[336871733,1725222640442,-500.0,0.00024657,2]
[336871734,1725222640453,-500.0,0.00024657,2]
[336871735,1725222640463,-500.0,0.00024657,2]
[336871736,1725222640472,-170.48473044,0.00024657,2]
[336871737,1725222640482,-500.0,0.00024657,2]
[336871738,1725222640492,-500.0,0.00024657,2]
[336871739,1725222640502,-1126.21,0.00024657,2]
[336871740,1725222640511,-624.00925403,0.00024657,2]
[336871741,1725222640521,-500.0,0.00024657,2]
[336871742,1725222640531,-1136.92,0.00024657,2]
[336871743,1725222640541,-500.0,0.00024657,2]
[336871744,1725222640550,-354.29299928,0.00024657,2]
[336871745,1725222640560,-1033.81,0.00024657,2]
[336871746,1725222640571,-500.0,0.00024657,2]
[336871747,1725222640589,-990.93,0.00024657,2]
[336871748,1725222640598,-500.0,0.00024657,2]
[336871749,1725222640803,-858.17,0.00024657,2]
[336871750,1725222640813,-500.0,0.00024657,2]
[336871751,1725222640825,-770.51,0.00024657,2]
[336871752,1725222640836,-500.0,0.00024657,2]
[336871753,1725222640845,-5805.32,0.00024657,2]
[336871754,1725222640854,-542.66,0.00024657,2]
[336871755,1725222640864,-1701.28,0.00024657,2]
[336871756,1725222640873,-522.95674367,0.00024657,2]
[336871757,1725222640883,-1159.66,0.00024657,2]
[336871758,1725222640894,-505.07028392,0.00024657,2]
[336871759,1725222640905,-729.69,0.00024657,2]
[336871760,1725222640915,-500.0,0.00024657,2]
[336871761,1725222640925,-2243.45,0.00024657,2]
[336871762,1725222640936,-500.0,0.00024657,2]
[336871763,1725222640947,-500.0,0.00024657,2]
[336871764,1725222640958,-500.0,0.00024657,2]
[336871765,1725222640968,-500.0,0.00024657,2]
[336871766,1725222640978,-500.0,0.00024657,2]
[336871767,1725222640988,-500.0,0.00024657,2]
[336871768,1725222640997,-1698.63,0.00024657,2]
[336871769,1725222641007,-500.0,0.00024657,2]
[336871770,1725222641018,-500.0,0.00024657,2]
[336871771,1725222641028,-1435.81,0.00024657,2]
[336871772,1725222641037,-500.0,0.00024657,2]
[336871773,1725222641046,-500.0,0.00024657,2]
[336871774,1725222641056,-500.0,0.00024657,2]
[336871775,1725222641065,-500.0,0.00024657,2]
[336871776,1725222641075,-500.0,0.00024657,2]
[336871777,1725222641085,-500.0,0.00024657,2]
[336871778,1725222641093,-500.0,0.00024657,2]
[336871779,1725222641103,-500.0,0.00024657,2]
[336871780,1725222641112,-500.0,0.00024657,2]
[336871781,1725222641121,-500.0,0.00024657,2]
[336871782,1725222641130,-860.2,0.00024657,2]
[336871783,1725222641139,-500.0,0.00024657,2]
[336871784,1725222641149,-1111.63,0.00024657,2]
[336871785,1725222641158,-500.0,0.00024657,2]
[336871786,1725222641168,-892.21,0.00024657,2]
[336871787,1725222641179,-500.0,0.00024657,2]
[336871788,1725222641188,-738.77,0.00024657,2]
[336871789,1725222641198,-500.0,0.00024657,2]
[336871790,1725222641208,-500.0,0.00024657,2]
[336871791,1725222641218,-1451.46,0.00024657,2]
[336871792,1725222641227,-2409.79,0.00024657,2]
[336871793,1725222641237,-500.0,0.00024657,2]
[336871794,1725222641246,-1159.75,0.00024657,2]
[336871795,1725222641255,-1159.75,0.00024657,2]
[336871796,1725222641265,-1159.75,0.00024657,2]
[336871797,1725222641274,-1159.75,0.00024657,2]
[336871798,1725222641284,-1159.75,0.00024657,2]
[336871799,1725222641293,-1159.75,0.00024657,2]
[336871800,1725222641303,-1002.25,0.00024657,2]
[336871801,1725222641313,-1159.75,0.00024657,2]
[336871802,1725222641323,-500.0,0.00024657,2]
[336871803,1725222641332,-786.6,0.00024657,2]
[336871804,1725222641342,-500.0,0.00024657,2]
[336871805,1725222641351,-500.0,0.00024657,2]
[336871806,1725222641361,-500.0,0.00024657,2]
[336871807,1725222641370,-500.0,0.00024657,2]
[336871808,1725222641380,-500.0,0.00024657,2]
[336871809,1725222641389,-1692.03,0.00024657,2]
[336871810,1725222641399,-500.0,0.00024657,2]
[336871811,1725222641409,-2058.86,0.00024657,2]
[336871812,1725222641419,-500.0,0.00024657,2]
[336871813,1725222641428,-500.0,0.00024657,2]
[336871814,1725222641438,-2006.4,0.00024657,2]
[336871815,1725222641449,-500.0,0.00024657,2]
[336871816,1725222641459,-558.74,0.00024657,2]
[336871817,1725222641468,-500.0,0.00024657,2]
[336871818,1725222641478,-500.0,0.00024657,2]
[336871819,1725222641487,-500.0,0.00024657,2]
[336871820,1725222641497,-507.63146472,0.00024657,2]
[336871821,1725222641507,-2169.5,0.00024657,2]
[336871822,1725222641517,-1508.74,0.00024657,2]
[336871823,1725222641527,-500.0,0.00024657,2]
[336871824,1725222641537,-500.0,0.00024657,2]
[336871825,1725222641547,-500.0,0.00024657,2]
[336871826,1725222641557,-623.68,0.00024657,2]
[336871827,1725222641567,-500.0,0.00024657,2]
[336871828,1725222641577,-500.0,0.00024657,2]
[336871829,1725222641587,-304.74475444,0.00024657,2]
[336871830,1725222641596,-500.0,0.00024657,2]
[336871831,1725222641605,-568.82,0.00024657,2]
[336871832,1725222641614,-1980.26,0.00024657,2]
[336871833,1725222641624,-3349.07,0.00024657,2]
[336871834,1725222641634,-500.0,0.00024657,2]
[336871835,1725222641643,-688.01,0.00024657,2]
[336871836,1725222641653,-702.65,0.00024657,2]
[336871837,1725222641663,-500.0,0.00024657,2]
[336871838,1725222641672,-500.0,0.00024657,2]
[336871839,1725222641682,-500.0,0.00024657,2]
[336871840,1725222641692,-1505.73,0.00024657,2]
[336871841,1725222641704,-500.0,0.00024657,2]
[336871842,1725222641715,-500.0,0.00024657,2]
[336871843,1725222641725,-500.0,0.00024657,2]
[336871844,1725222641735,-500.0,0.00024657,2]
[336871845,1725222641747,-500.0,0.00024657,2]
[336871846,1725222641757,-500.0,0.00024657,2]
[336871847,1725222641767,-500.0,0.00024657,2]
[336871848,1725222641779,-500.0,0.00024657,2]
[336871849,1725222641788,-500.0,0.00024657,2]
[336871850,1725222641798,-716.61,0.00024657,2]
[336871851,1725222641808,-500.0,0.00024657,2]
[336871852,1725222641818,-1412.78,0.00024657,2]
[336871853,1725222641827,-500.0,0.00024657,2]
[336871854,1725222641837,-500.0,0.00024657,2]
[336871855,1725222641847,-500.0,0.00024657,2]
[336871856,1725222641856,-500.0,0.00024657,2]
[336871857,1725222641866,-500.0,0.00024657,2]
[336871858,1725222641876,-2346.52,0.00024657,2]
[336871859,1725222641885,-500.0,0.00024657,2]
[336871860,1725222641894,-1926.66,0.00024657,2]
[336871861,1725222641905,-155.00327664,0.00024657,2]
[336871862,1725222641915,-762.01,0.00024657,2]
[336871863,1725222641927,-500.0,0.00024657,2]
[336871864,1725222641939,-13707.54,0.00024657,2]
[336871865,1725222641951,-500.0,0.00024657,2]
[336871866,1725222641960,-500.0,0.00024657,2]
[336871867,1725222641969,-1562.81,0.00024657,2]
[336871868,1725222641979,-500.0,0.00024657,2]
[336871869,1725222641988,-699.48,0.00024657,2]
[336871870,1725222641997,-1676.36,0.00024657,2]
[336871871,1725222642008,-500.0,0.00024657,2]
[336871872,1725222642017,-302.37385269,0.00024657,2]
[336871873,1725222642027,-1851.73,0.00024657,2]
[336871874,1725222642037,-1043.16,0.00024657,2]
[336871875,1725222642048,-2275.21,0.00024657,2]
[336871876,1725222642058,-2980.79,0.00024657,2]
[336871877,1725222642068,-324.27186465,0.00024657,2]
[336871878,1725222642077,-500.0,0.00024657,2]
[336871879,1725222642086,-500.0,0.00024657,2]
[336871880,1725222642095,-500.0,0.00024657,2]
[336871881,1725222642105,-500.0,0.00024657,2]
[336871882,1725222642114,-509.6084453,0.00024657,2]
[336871883,1725222642124,-500.0,0.00024657,2]
[336871884,1725222642133,-500.0,0.00024657,2]
[336871885,1725222642143,-500.0,0.00024657,2]
[336871886,1725222642152,-500.0,0.00024657,2]
[336871887,1725222642162,-974.95,0.00024657,2]
[336871888,1725222642172,-705.78,0.00024657,2]
[336871889,1725222642181,-500.0,0.00024657,2]
[336871890,1725222642190,-3034.26,0.00024657,2]
[336871891,1725222642200,-500.0,0.00024657,2]
[336871892,1725222642210,-500.0,0.00024657,2]
[336871893,1725222642219,-500.0,0.00024657,2]
[336871894,1725222642228,-500.0,0.00024657,2]
[336871895,1725222642238,-1032.75,0.00024657,2]
[336871896,1725222642247,-1657.85,0.00024657,2]
[336871897,1725222642256,-500.0,0.00024657,2]
[336871898,1725222642266,-983.68,0.00024657,2]
[336871899,1725222642275,-500.0,0.00024657,2]
[336871900,1725222642284,-1579.53,0.00024657,2]
[336871901,1725222642294,-500.0,0.00024657,2]
[336871902,1725222642303,-500.0,0.00024657,2]
[336871903,1725222642312,-500.0,0.00024657,2]
[336871904,1725222642322,-681.6,0.00024657,2]
[336871905,1725222642331,-500.0,0.00024657,2]
[336871906,1725222642340,-500.0,0.00024657,2]
[336871907,1725222642350,-1532.4,0.00024657,2]
[336871908,1725222642359,-501.9532307,0.00024657,2]
[336871909,1725222642368,-513.02,0.00024657,2]
[336871910,1725222642377,-1692.45,0.00024657,2]
[336871911,1725222642387,-1082.48,0.00024657,2]
[336871912,1725222642396,-500.0,0.00024657,2]
[336871913,1725222642405,-807.53,0.00024657,2]
[336871914,1725222642415,-793.52,0.00024657,2]
[336871915,1725222642424,-500.0,0.00024657,2]
[336871916,1725222642438,-1432.12,0.00024657,2]
[336871917,1725222642448,-523.39,0.00024657,2]
[336871918,1725222642460,-726.04,0.00024657,2]
[336871919,1725222642469,-500.0,0.00024657,2]
[336871920,1725222642478,-7355.57,0.00024657,2]
[336871921,1725222642487,-500.0,0.00024657,2]
[336871922,1725222642496,-717.77,0.00024657,2]
[336871923,1725222642506,-1292.18,0.00024657,2]
[336871924,1725222642515,-500.0,0.00024657,2]
[336871925,1725222642524,-650.16,0.00024657,2]
[336871926,1725222642532,-1530.26,0.00024657,2]
[336871927,1725222642542,-500.0,0.00024657,2]
[336871928,1725222642551,-500.0,0.00024657,2]
[336871929,1725222642560,-500.0,0.00024657,2]
[336871930,1725222642569,-1692.87,0.00024657,2]
[336871931,1725222642578,-701.53,0.00024657,2]
[336871932,1725222642587,-1271.84,0.00024657,2]
[336871933,1725222642596,-500.0,0.00024657,2]
[336871934,1725222642605,-500.0,0.00024657,2]
[336871935,1725222642615,-500.0,0.00024657,2]
[336871936,1725222642625,-1762.97,0.00024657,2]
[336871937,1725222642634,-576.71,0.00024657,2]
[336871938,1725222642643,-1729.16,0.00024657,2]
[336871939,1725222642652,-500.0,0.00024657,2]
[336871940,1725222642661,-500.0,0.00024657,2]
[336871941,1725222642670,-500.0,0.00024657,2]
[336871942,1725222642679,-500.0,0.00024657,2]
[336871943,1725222642688,-1557.03,0.00024657,2]
[336871944,1725222642698,-500.0,0.00024657,2]
[336871945,1725222642712,-2545.67,0.00024657,2]
[336871946,1725222642721,-638.19648141,0.00024657,2]
[336871947,1725222642730,-500.0,0.00024657,2]
[336871948,1725222642740,-500.0,0.00024657,2]
[336871949,1725222642751,-3134.86,0.00024657,2]
[336871950,1725222642760,-2114.82,0.00024657,2]
[336871951,1725222642770,-500.0,0.00024657,2]
[336871952,1725222642780,-500.0,0.00024657,2]
[336871953,1725222642789,-500.0,0.00024657,2]
[336871955,1725222642798,-500.0,0.00024657,2]
[336871956,1725222642808,-641.31,0.00024657,2]
[336871957,1725222642818,-500.0,0.00024657,2]
[336871958,1725222642828,-2230.35,0.00024657,2]
[336871959,1725222642838,-500.0,0.00024657,2]
[336871960,1725222642848,-577.79,0.00024657,2]
[336871961,1725222642857,-503.48,0.00024657,2]
[336871962,1725222642867,-1379.75,0.00024657,2]
[336871963,1725222642876,-500.0,0.00024657,2]
[336871964,1725222642886,-502.05045916,0.00024657,2]
[336871965,1725222642896,-500.0,0.00024673,2]
[336871966,1725222642906,-1231.40774871,0.00024831,2]
[336871967,1725222642915,-20053.07444269,0.000249,2]
[336871968,1725222643146,-500.0,0.00024657,2]
[336871970,1725222643155,-1.98208771,0.000249,2]
[336871972,1725222643166,-37904.39491474,0.000249,2]
[336871973,1725222643175,-867.77707044,0.00024921,3]
[336871974,1725222643185,-500.0,0.0002493,2]
[336871975,1725222643197,-500.0,0.0002493,2]
[336871976,1725222643208,-263.14957392,0.0002493,2]
[336871977,1725222643220,-1159.75,0.0002493,2]
[336871978,1725222643230,-1159.75,0.0002493,2]
[336871979,1725222643240,-1159.75,0.0002493,2]
[336871980,1725222643251,-1159.75,0.0002493,2]
[336871981,1725222643262,-1159.75,0.0002493,2]
[336871982,1725222643272,-1159.75,0.0002493,2]
[336871983,1725222643281,-500.0,0.00024931,2]
[336871984,1725222643291,-500.0,0.00024931,2]
[336871985,1725222643302,-500.0,0.00024931,2]
[336871986,1725222643311,-500.0,0.00024931,2]
[336871987,1725222643320,-500.0,0.00024931,2]
[336871988,1725222643332,-500.0,0.00024931,2]
[336871989,1725222643341,-500.0,0.00024931,2]
[336871990,1725222643350,-500.0,0.00024931,2]
[336871991,1725222643359,-500.0,0.00024931,2]
[336871992,1725222643368,-500.0,0.00024931,2]
[336871993,1725222643379,-500.0,0.00024931,2]
[336871994,1725222643390,-500.0,0.00024931,2]
[336871995,1725222643401,-500.0,0.00024931,2]
[336871996,1725222643410,-411.85883533,0.00024931,2]
[336871997,1725222643421,-500.0,0.00024931,2]
[336871998,1725222643430,-688.45,0.00024931,2]
[336871999,1725222643438,-500.0,0.00024931,2]
[336872000,1725222643447,-506.07,0.00024931,2]
[336872001,1725222643457,-500.0,0.00024931,2]
[336872002,1725222643466,-500.0,0.00024931,2]
[336872003,1725222643476,-500.0,0.00024931,2]
[336872004,1725222643485,-500.0,0.00024931,2]
[336872005,1725222643494,-536.96617675,0.00024931,2]
[336872006,1725222643503,-500.0,0.00024931,2]
[336872007,1725222643512,-500.0,0.00024931,2]
[336872008,1725222643521,-500.0,0.00024931,2]
[336872009,1725222643530,-500.0,0.00024931,2]
[336872010,1725222643539,-500.0,0.00024931,2]
[336872011,1725222643548,-504.48033631,0.00024931,2]
[336872012,1725222643557,-500.0,0.00024931,2]
[336872013,1725222643566,-500.0,0.00024931,2]
[336872014,1725222643576,-500.0,0.00024931,2]
[336872015,1725222643585,-500.0,0.00024931,2]
[336872016,1725222643595,-1108.38,0.00024931,2]
[336872017,1725222643604,-500.0,0.00024931,2]
[336872018,1725222643615,-500.0,0.00024931,2]
[336872019,1725222643625,-500.0,0.00024931,2]
[336872020,1725222643635,-700.54,0.00024931,2]
[336872021,1725222643645,-707.28,0.00024931,2]
[336872022,1725222643655,-500.0,0.00024931,2]
[336872023,1725222643664,-500.0,0.00024931,2]
[336872024,1725222643673,-610.53,0.00024931,2]
[336872025,1725222643682,-500.0,0.00024931,2]
[336872026,1725222643692,-500.0,0.00024931,2]
[336872027,1725222643703,-500.0,0.00024931,2]
[336872028,1725222643712,-500.0,0.00024931,2]
[336872029,1725222643722,-500.0,0.00024931,2]
[336872030,1725222643731,-500.0,0.00024931,2]
[336872031,1725222643740,-500.0,0.00024931,2]
[336872032,1725222643750,-500.0,0.00024931,2]
[336872033,1725222643759,-973.78,0.00024931,2]
[336872034,1725222643769,-500.0,0.00024931,2]
[336872035,1725222643778,-500.0,0.00024931,2]
[336872036,1725222643788,-500.0,0.00024931,2]
[336872037,1725222643798,-1382.58,0.00024931,2]
[336872038,1725222643807,-500.0,0.00024931,2]
[336872039,1725222643817,-500.0,0.00024931,2]
[336872040,1725222643827,-500.0,0.00024931,2]
[336872041,1725222643836,-500.0,0.00024931,2]
[336872042,1725222643846,-539.12,0.00024931,2]
[336872043,1725222643856,-500.0,0.00024931,2]
[336872044,1725222643865,-500.0,0.00024931,2]
[336872045,1725222643877,-500.0,0.00024931,2]
[336872046,1725222643888,-500.0,0.00024931,2]
[336872047,1725222643898,-574.53,0.00024931,2]
[336872048,1725222643907,-687.58,0.00024931,2]
[336872049,1725222643917,-500.0,0.00024931,2]
[336872050,1725222643926,-574.16,0.00024931,2]
[336872051,1725222643935,-500.0,0.00024931,2]
[336872052,1725222643946,-500.0,0.00024931,2]
[336872053,1725222643955,-816.19,0.00024931,2]
[336872054,1725222643965,-500.0,0.00024931,2]
[336872055,1725222643974,-500.0,0.00024931,2]
[336872056,1725222643983,-517.94,0.00024931,2]
[336872058,1725222643993,-681.65,0.00024931,2]
[336872059,1725222644002,-500.0,0.00024931,2]
[336872060,1725222644012,-500.0,0.00024931,2]
[336872061,1725222644023,-500.0,0.00024931,2]
[336872062,1725222644033,-500.0,0.00024931,2]
[336872063,1725222644044,-503.23,0.00024931,2]
[336872064,1725222644056,-500.0,0.00024931,2]
[336872065,1725222644065,-500.0,0.00024931,2]
[336872066,1725222644075,-500.0,0.00024931,2]
[336872067,1725222644085,-500.0,0.00024931,2]
[336872068,1725222644094,-500.0,0.00024931,2]
[336872069,1725222644103,-500.0,0.00024931,2]
[336872070,1725222644112,-500.0,0.00024931,2]
[336872071,1725222644122,-500.0,0.00024931,2]
[336872072,1725222644131,-521.3,0.00024931,2]
[336872073,1725222644140,-500.0,0.00024931,2]
[336872074,1725222644149,-500.0,0.00024931,2]
[336872075,1725222644158,-500.0,0.00024931,2]
[336872076,1725222644167,-503.24694525,0.00024931,2]
[336872077,1725222644176,-461.40907727,0.00024931,2]
[336872078,1725222644185,-500.0,0.00024931,2]
[336872079,1725222644194,-284.92661686,0.00024931,2]
[336872080,1725222644204,-500.0,0.00024931,2]
[336872081,1725222644213,-500.0,0.00024931,2]
[336872082,1725222644356,-500.0,0.00024931,2]
[336872083,1725222644366,-500.0,0.00024931,2]
[336872084,1725222644376,-500.0,0.00024931,2]
[336872085,1725222644385,-500.0,0.00024931,2]
[336872086,1725222644394,-262.95464729,0.00024931,2]
[336872087,1725222644403,-3889.93,0.00024931,2]
[336872088,1725222644413,-500.0,0.00024931,2]
[336872089,1725222644422,-500.0,0.00024931,2]
[336872090,1725222644431,-500.0,0.00024931,2]
[336872091,1725222644441,-500.0,0.00024931,2]
[336872092,1725222644450,-500.0,0.00024931,2]
[336872093,1725222644458,-500.0,0.00024931,2]
[336872094,1725222644468,-500.0,0.00024931,2]
[336872095,1725222644478,-619.55,0.00024931,2]
[336872096,1725222644487,-500.0,0.00024931,2]
[336872097,1725222644496,-759.02,0.00024931,2]
[336872098,1725222644506,-269.24649168,0.00024931,2]
[336872099,1725222644515,-1329.4,0.00024931,2]
[336872100,1725222644525,-593.67,0.00024931,2]
[336872101,1725222644534,-675.17,0.00024931,2]
[336872102,1725222644543,-500.0,0.00024931,2]
[336872103,1725222644553,-500.0,0.00024931,2]
[336872104,1725222644564,-500.0,0.00024931,2]
[336872105,1725222644574,-500.0,0.00024931,2]
[336872106,1725222644583,-594.92,0.00024931,2]
[336872107,1725222644592,-500.0,0.00024931,2]
[336872108,1725222644602,-500.0,0.00024931,2]
[336872109,1725222644612,-332.55119175,0.00024931,2]
[336872110,1725222644621,-500.0,0.00024931,2]
[336872111,1725222644632,-500.0,0.00024931,2]
[336872112,1725222644642,-500.0,0.00024931,2]
[336872113,1725222644651,-500.0,0.00024931,2]
[336872114,1725222644661,-500.0,0.00024931,2]
[336872115,1725222644670,-500.0,0.00024931,2]
[336872116,1725222644679,-500.0,0.00024931,2]
[336872117,1725222644689,-500.0,0.00024931,2]
[336872118,1725222644699,-695.34,0.00024931,2]
[336872119,1725222644711,-500.0,0.00024931,2]
[336872120,1725222644721,-500.0,0.00024931,2]
[336872121,1725222644730,-500.0,0.00024931,2]
[336872122,1725222644741,-500.0,0.00024931,2]
[336872123,1725222644751,-1126.21,0.00024931,2]
[336872124,1725222644760,-500.0,0.00024931,2]
[336872125,1725222644769,-1136.92,0.00024931,2]
[336872126,1725222644780,-500.0,0.00024931,2]
[336872127,1725222644790,-1033.81,0.00024931,2]
[336872128,1725222644799,-500.0,0.00024931,2]
[336872129,1725222644809,-990.93,0.00024931,2]
[336872130,1725222644819,-500.0,0.00024931,2]
[336872131,1725222644829,-858.17,0.00024931,2]
[336872132,1725222644838,-500.0,0.00024931,2]
[336872133,1725222644847,-770.51,0.00024931,2]
[336872134,1725222644857,-500.0,0.00024931,2]
[336872135,1725222644866,-5805.32,0.00024931,2]
[336872136,1725222644875,-542.66,0.00024931,2]
[336872137,1725222644885,-1701.28,0.00024931,2]
[336872138,1725222644894,-1159.66,0.00024931,2]
[336872139,1725222644903,-729.69,0.00024931,2]
[336872140,1725222644913,-2243.45,0.00024931,2]
[336872141,1725222644922,-500.0,0.00024931,2]
[336872142,1725222644931,-288.97975478,0.00024931,2]
[336872143,1725222644942,-500.0,0.00024931,2]
[336872144,1725222644951,-500.0,0.00024931,2]
[336872145,1725222644961,-1698.63,0.00024931,2]
[336872146,1725222644970,-500.0,0.00024931,2]
[336872147,1725222644979,-1435.81,0.00024931,2]
[336872148,1725222644988,-500.0,0.00024931,2]
[336872149,1725222644997,-500.0,0.00024931,2]
[336872150,1725222645007,-500.0,0.00024931,2]
[336872151,1725222645016,-500.0,0.00024931,2]
[336872152,1725222645025,-500.0,0.00024931,2]
[336872153,1725222645034,-500.0,0.00024931,2]
[336872154,1725222645044,-500.0,0.00024931,2]
[336872155,1725222645054,-500.0,0.00024931,2]
[336872156,1725222645063,-860.2,0.00024931,2]
[336872157,1725222645072,-500.0,0.00024931,2]
[336872158,1725222645081,-1111.63,0.00024931,2]
[336872159,1725222645091,-500.0,0.00024931,2]
[336872160,1725222645101,-892.21,0.00024931,2]
[336872161,1725222645110,-738.77,0.00024931,2]
[336872162,1725222645119,-500.0,0.00024931,2]
[336872163,1725222645128,-500.0,0.00024931,2]
[336872164,1725222645137,-1451.46,0.00024931,2]
[336872165,1725222645146,-2409.79,0.00024931,2]
[336872166,1725222645155,-1002.25,0.00024931,2]
[336872167,1725222645164,-500.0,0.00024931,2]